bitfinex-derivatives/quotes_ETHF0:USTF0_20250320
["timestamp","ask_amount","ask_price","bid_price","bid_amount"]
[1742503245438,2.29835,1982.1,1982.0,2.37926]
[1742503256134,2.98245,1982.1,1982.0,2.37926]
[1742503260140,3.2078,1982.5,1982.0,7.8015]
[1742503260348,3.7493,1982.6,1982.4,1.00936]
[1742503260535,2.3841,1982.6,1982.5,1.3324]
[1742503260742,2.3841,1982.6,1982.5,2.34171]
[1742503261346,1.00924,1982.7,1982.6,1.0092]
[1742503261549,1.00906,1983.1,1983.0,1.009]
[1742503261753,3.53169,1983.1,1982.8,4.21693]
[1742503262047,1.0091,1982.9,1982.8,1.00913]
[1742503262547,1.69169,1983.0,1982.9,1.0091]
[1742503263153,1.69169,1983.0,1982.9,1.6964017]
[1742503263344,1.69169,1983.0,1982.9,0.6873017]
[1742503263852,1.00915,1982.9,1982.8,1.0091]
[1742503264043,1.00915,1982.9,1982.8,1.69592414]
[1742503264243,1.00915,1982.9,1982.8,1.69556739]
[1742503266246,1.00915,1982.9,1982.8,1.69518093]
[1742503266646,1.00915,1982.9,1982.8,1.0091]
[1742503268950,1.00915,1982.9,1982.7,3.9048]
[1742503268951,1.00915,1982.8,1982.7,4.91396]
[1742503269157,1.00915,1982.8,1982.7,5.59963224]
[1742503270351,1.00915,1982.8,1982.7,5.59945819]
[1742503271650,1.00926,1982.6,1982.5,7.44006]
[1742503271952,1.00926,1982.6,1982.5,4.21706]
[1742503272250,1.00926,1982.6,1982.5,3.2078]
[1742503272444,1.67176,1982.6,1982.5,4.21711]
[1742503272647,1.67176,1982.6,1982.5,3.2078]
[1742503272840,1.67176,1982.6,1982.5,4.21711]
[1742503273749,1.67176,1982.6,1982.5,3.2078]
[1742503273947,1.00936,1982.4,1982.3,0.00758284]
[1742503276151,1.00936,1982.4,1982.3,1.01699284]
[1742503277752,1.00934,1982.5,1982.4,1.00931]
[1742503277958,4.23125,1982.7,1982.6,1.00926]
[1742503278253,1.00926,1982.6,1982.5,2.31499]
[1742503278446,1.00926,1982.6,1982.4,3.223]
[1742503278447,1.00931,1982.5,1982.4,4.23232]
[1742503278648,1.00931,1982.5,1982.4,4.91888788]
[1742503278845,1.00931,1982.5,1982.4,5.54812]
[1742503279051,1.00931,1982.5,1982.4,6.23476054]
[1742503280655,1.00931,1982.6,1982.5,1.00926]
[1742503280855,1.00931,1982.6,1982.5,2.39416]
[1742503281052,1.00921,1982.7,1982.6,1.00926]
[1742503281255,1.00921,1982.7,1982.6,2.39416]
[1742503281457,1.00915,1982.9,1982.8,1.0091]
[1742503281659,1.0091,1983.0,1982.9,1.0091]
[1742503283159,1.0091,1983.0,1982.9,4.90321083]
[1742503283358,1.00905,1983.1,1983.0,1.009]
[1742503283560,1.00905,1983.1,1983.0,2.337]
[1742503284456,1.00905,1983.1,1983.0,1.328]
[1742503284767,1.00915,1982.8,1982.7,4.867]
[1742503284959,1.00915,1982.8,1982.7,5.545]
[1742503285455,1.00915,1982.8,1982.7,4.5358]
[1742503285658,1.00915,1982.8,1982.7,5.545]
[1742503285856,1.00915,1982.8,1982.7,4.5358]
[1742503286057,1.00915,1982.8,1982.7,2.3372]
[1742503286262,1.00915,1982.8,1982.7,1.328]
[1742503287465,2.38005,1982.8,1982.7,1.328]
[1742503287962,1.00926,1982.6,1982.5,2.35827]
[1742503288165,1.00926,1982.6,1982.5,3.04569866]
[1742503288363,1.00926,1982.6,1982.5,3.04597576]
[1742503288562,1.66016,1982.6,1982.5,2.35827]
[1742503289356,1.66016,1982.6,1982.5,4.38456362]
[1742503289556,1.66016,1982.6,1982.5,4.38456851]
[1742503289759,2.31946,1982.6,1982.5,4.38456851]
[1742503291769,2.31946,1982.6,1982.5,3.37529851]
[1742503291963,2.31946,1982.6,1982.5,4.38460851]
[1742503292265,2.31946,1982.6,1982.5,4.38422093]
[1742503293065,2.31946,1982.6,1982.5,2.02591093]
[1742503294466,2.31946,1982.6,1982.5,3.03522093]
[1742503294859,2.31946,1982.6,1982.5,2.02591093]
[1742503296169,2.31946,1982.6,1982.5,2.02592255]
[1742503298767,2.31946,1982.6,1982.5,3.03523255]
[1742503298967,2.31946,1982.6,1982.5,2.02592255]
[1742503301466,3.64216,1982.6,1982.5,3.03523255]
[1742503301664,3.64216,1982.6,1982.5,2.02592255]
[1742503302173,3.64216,1982.6,1982.5,1.3383]
[1742503302365,3.64216,1982.6,1982.5,2.02619544]
[1742503303473,3.64216,1982.6,1982.5,3.03550544]
[1742503303670,3.64216,1982.6,1982.5,2.02619544]
[1742503304275,3.64216,1982.6,1982.5,2.02620614]
[1742503305573,1.00936,1982.4,1982.3,3.92028284]
[1742503305868,4.23136,1982.4,1982.3,0.69575607]
[1742503306073,4.23136,1982.4,1982.3,1.70516607]
[1742503306465,1.00936,1982.4,1982.3,1.70516607]
[1742503307973,1.00936,1982.4,1982.3,3.09006607]
[1742503309771,1.00932,1982.6,1982.5,1.00926]
[1742503310075,2.36192,1982.6,1982.5,1.69743323]
[1742503310274,2.36192,1982.6,1982.5,3.08233323]
[1742503311476,1.00932,1982.6,1982.5,3.08233323]
[1742503312378,1.00932,1982.6,1982.5,3.08249249]
[1742503313872,5.73046,1983.0,1982.5,4.59639249]
[1742503314183,1.00918,1982.9,1982.8,1.00911]
[1742503314482,1.00918,1982.9,1982.8,3.72096659]
[1742503316583,2.34088,1982.9,1982.8,2.71185659]
[1742503316786,2.34088,1982.9,1982.8,2.03435659]
[1742503317185,1.00926,1982.6,1982.5,8.12217]
[1742503317386,1.00926,1982.6,1982.5,5.58745553]
[1742503318384,1.00926,1982.6,1982.5,5.58741985]
[1742503319078,1.00925,1982.7,1982.6,1.0092]
[1742503319374,1.00925,1982.7,1982.6,3.07504985]
[1742503322088,1.64913,1982.9,1982.8,1.00915]
[1742503322281,3.06483,1982.9,1982.8,1.69739985]
[1742503322683,3.06483,1982.9,1982.8,3.78309985]
[1742503322883,2.42483,1982.9,1982.8,3.78309985]
[1742503323286,1.00899,1983.2,1982.8,2.77394985]
[1742503323585,1.00902,1983.1,1982.9,3.11100985]
[1742503323791,1.00902,1983.1,1983.0,0.68743189]
[1742503323792,1.00903,1983.1,1983.0,0.68743189]
[1742503324198,1.00903,1983.1,1983.0,1.69648189]
[1742503326791,0.6909,1983.3,1983.1,1.00898]
[1742503326992,4.92281,1983.3,1983.2,1.00895]
[1742503327696,1.00891,1983.3,1983.2,1.00895]
[1742503327993,3.878,1983.4,1983.1,1.66436]
[1742503328196,1.00895,1983.2,1983.1,0.6554]
[1742503328394,1.00895,1983.2,1983.1,1.34194336]
[1742503328992,0.6626,1983.3,1983.2,1.00895]
[1742503329193,4.8965,1983.3,1983.2,1.00895]
[1742503330495,3.8876,1983.3,1982.9,3.2078]
[1742503330691,1.00903,1983.1,1983.0,1.69519895]
[1742503331897,1.00899,1983.2,1983.1,1.00899]
[1742503333597,1.00902,1983.1,1983.0,1.00902]
[1742503334001,1.009,1983.1,1983.0,1.69519145]
[1742503334299,3.8876,1983.3,1983.0,1.69519145]
[1742503334300,1.00898,1983.2,1983.1,1.00899]
[1742503334997,1.009,1983.1,1983.0,1.00901]
[1742503335201,1.00898,1983.2,1983.1,1.00899]
[1742503335700,1.00901,1983.1,1983.0,1.00901]
[1742503335999,3.8876,1983.3,1983.0,1.00901]
[1742503336000,1.00899,1983.2,1983.1,1.00899]
[1742503336193,1.009,1983.2,1983.1,1.00899]
[1742503336393,3.8876,1983.3,1982.9,4.28361531]
[1742503336595,1.65521,1983.1,1983.0,1.69526095]
[1742503337900,1.65521,1983.1,1983.0,0.68637636]
[1742503338099,1.65521,1983.1,1983.0,1.69542636]
[1742503338497,1.65521,1983.1,1983.0,0.68637636]
[1742503338890,1.00905,1983.0,1982.9,5.4997]
[1742503339100,3.02755,1983.0,1982.9,5.17705437]
[1742503339598,6.24955,1983.0,1982.9,3.2078]
[1742503340401,6.24955,1983.0,1982.9,4.4906]
[1742503341304,6.24955,1983.0,1982.9,1.2828]
[1742503342305,6.24955,1983.0,1982.9,1.97003353]
[1742503343104,6.24955,1983.0,1982.9,1.97019874]
[1742503343899,6.24955,1983.0,1982.9,1.97020173]
[1742503345896,6.24955,1983.0,1982.9,2.97909731]
[1742503347207,6.24955,1983.0,1982.9,1.96999731]
[1742503347403,6.24955,1983.0,1982.9,2.97909731]
[1742503347907,6.24955,1983.0,1982.9,2.97910895]
[1742503348709,3.02755,1983.0,1982.9,2.97910895]
[1742503348910,1.00905,1983.0,1982.9,3.65130895]
[1742503350711,1.00905,1983.0,1982.9,2.9641]
[1742503351013,1.00905,1983.0,1982.9,3.65164267]
[1742503351211,2.37745,1983.0,1982.9,3.65164267]
[1742503351409,2.37745,1983.0,1982.9,2.9641]
[1742503351807,2.37745,1983.0,1982.9,3.65172836]
[1742503354619,2.37745,1983.0,1982.9,2.64262836]
[1742503354821,5.59945,1983.0,1982.9,0.68762836]
[1742503355116,1.0091,1982.9,1982.8,1.403]
[1742503355307,6.1586,1982.9,1982.8,1.403]
[1742503360820,6.1586,1982.9,1982.5,3.2078]
[1742503360821,1.00926,1982.6,1982.5,4.21708]
[1742503361024,1.00926,1982.6,1982.5,6.2007203]
[1742503361722,1.00926,1982.6,1982.5,2.9929203]
[1742503366922,1.00926,1982.6,1982.5,1.9836403]
[1742503367920,4.23126,1982.6,1982.5,1.2961]
[1742503368223,1.00936,1982.4,1982.3,0.00758284]
[1742503368422,1.00936,1982.4,1982.3,1.99186646]
[1742503368423,4.23136,1982.4,1982.3,1.99186646]
[1742503368826,5.54286,1982.4,1982.3,1.99186646]
[1742503369127,5.54286,1982.4,1982.3,1.99191552]
[1742503371132,5.54286,1982.4,1982.3,1.99156476]
[1742503372325,5.54286,1982.4,1982.3,1.99141969]
[1742503373228,5.54286,1982.4,1982.3,3.00082969]
[1742503373430,5.54286,1982.4,1982.3,1.99141969]
[1742503374334,5.54286,1982.4,1982.3,3.00082969]
[1742503375030,5.54286,1982.4,1982.3,1.99141969]
[1742503375229,5.54286,1982.4,1982.3,1.99131833]
[1742503375929,1.00936,1982.4,1982.3,3.00072833]
[1742503376134,1.00934,1982.5,1982.4,1.00931]
[1742503376427,1.00934,1982.5,1982.4,3.07854549]
[1742503377222,1.00934,1982.5,1982.4,3.07851436]
[1742503378232,2.35944,1982.5,1982.4,2.06920436]
[1742503378432,2.35944,1982.5,1982.4,1.3822]
[1742503379729,2.35944,1982.5,1982.4,2.06952532]
[1742503380141,2.35944,1982.5,1982.4,2.06966199]
[1742503380839,2.35944,1982.5,1982.4,1.3822]
[1742503381938,2.35944,1982.5,1982.4,2.07017952]
[1742503383237,2.35944,1982.5,1982.4,2.07028668]
[1742503384732,2.35944,1982.5,1982.4,1.3822]
[1742503385637,2.35944,1982.5,1982.4,2.07051644]
[1742503390934,1.00966,1981.9,1981.8,3.2078]
[1742503391235,1.00966,1981.9,1981.8,4.88654]
[1742503392537,1.00966,1981.9,1981.8,3.8769]
[1742503392738,1.00966,1981.9,1981.8,5.2317]
[1742503393044,3.10346,1981.9,1981.8,5.2317]
[1742503393437,3.76396,1981.9,1981.8,4.5626]
[1742503395447,1.00966,1981.9,1981.8,5.57226]
[1742503395745,1.00966,1981.9,1981.8,6.22956]
[1742503402248,0.00751848,1982.0,1981.9,1.00961]
[1742503402448,0.00751848,1982.0,1981.9,2.29031]
[1742503402846,0.00751848,1982.0,1981.9,2.97247619]
[1742503404757,0.00751848,1982.0,1981.9,2.97252039]
[1742503408753,4.5121,1982.4,1982.3,1.00941]
[1742503408754,1.00938,1982.4,1982.3,1.00941]
[1742503408955,1.00938,1982.4,1982.3,1.69162033]
[1742503409547,1.00938,1982.4,1982.3,3.09502033]
[1742503410160,2.29848,1982.4,1982.3,3.09502033]
[1742503410853,2.29848,1982.4,1982.3,3.09469677]
[1742503411859,2.29848,1982.4,1982.3,3.09468708]
[1742503412059,2.29848,1982.4,1982.3,3.11291]
[1742503412259,2.29848,1982.4,1982.3,3.79480254]
[1742503412559,2.29848,1982.4,1982.3,3.11291]
[1742503413257,2.29848,1982.4,1982.3,3.79486447]
[1742503414548,2.29848,1982.4,1982.3,3.79483099]
[1742503414751,2.29848,1982.4,1982.3,3.09473099]
[1742503415758,2.29848,1982.4,1982.3,2.08532099]
[1742503416154,1.00946,1982.2,1982.1,4.2173]
[1742503416462,1.00946,1982.2,1982.1,4.89940101]
[1742503416955,1.65056,1982.2,1982.1,4.89940101]
[1742503417160,2.35166,1982.2,1982.1,4.89940101]
[1742503417459,2.35166,1982.2,1982.1,6.24000101]
[1742503417660,2.35166,1982.2,1982.1,5.23050101]
[1742503417847,5.57366,1982.2,1982.1,0.68210101]
[1742503418054,1.00956,1982.0,1981.9,1.3406]
[1742503418261,1.00956,1982.0,1981.9,2.02292911]
[1742503418463,1.00956,1982.0,1981.9,2.02303364]
[1742503418763,1.00956,1982.0,1981.9,0.68243364]
[1742503419761,1.00956,1982.0,1981.9,2.02303364]
[1742503420464,1.00956,1982.0,1981.9,2.02297323]
[1742503420668,4.23156,1982.0,1981.9,2.02297323]
[1742503420960,4.23156,1982.0,1981.9,0.68237323]
[1742503422755,4.23156,1982.0,1981.9,2.00397323]
[1742503424256,4.23156,1982.0,1981.9,3.01358323]
[1742503424459,4.23156,1982.0,1981.9,3.01355261]
[1742503425361,4.23156,1982.0,1981.9,2.00394261]
[1742503428563,4.23156,1982.0,1981.9,2.00393358]
[1742503428763,4.23156,1982.0,1981.9,3.01354358]
[1742503429776,4.23156,1982.0,1981.9,2.00393358]
[1742503430466,4.23156,1982.0,1981.9,1.3216]
[1742503430664,4.23156,1982.0,1981.9,2.00393363]
[1742503432672,4.23156,1982.0,1981.9,2.00378136]
[1742503433070,4.23156,1982.0,1981.9,3.01339136]
[1742503433466,5.63536,1982.0,1981.9,2.00378136]
[1742503434571,5.63536,1982.0,1981.9,3.01351843]
[1742503435171,5.63536,1982.0,1981.9,2.00390843]
[1742503436168,5.63536,1982.0,1981.9,3.01351843]
[1742503438670,2.41336,1982.0,1981.9,3.01366597]
[1742503438877,1.00955,1982.1,1982.0,1.00956]
[1742503439173,1.00955,1982.1,1982.0,3.77801597]
[1742503440375,1.0095,1982.2,1982.1,1.00946]
[1742503440576,1.00945,1982.3,1982.2,1.00941]
[1742503440763,1.00945,1982.3,1982.2,1.69173564]
[1742503440963,1.00945,1982.3,1982.2,3.06813564]
[1742503441769,1.0094,1982.4,1982.3,1.00936]
[1742503441964,1.0094,1982.4,1982.3,3.75128564]
[1742503442574,2.3679,1982.4,1982.3,3.75128564]
[1742503443276,1.0094,1982.4,1982.3,3.75128564]
[1742503444186,2.3679,1982.4,1982.3,3.75107549]
[1742503444674,2.3679,1982.4,1982.3,2.07331549]
[1742503445075,5.5899,1982.4,1982.3,2.07331549]
[1742503446179,5.5899,1982.4,1982.3,2.07313978]
[1742503446480,2.52353,1982.3,1981.8,11.47808]
[1742503446679,1.00957,1982.1,1982.0,1.67532]
[1742503446884,1.00957,1982.1,1982.0,2.3571565]
[1742503447782,1.00957,1982.1,1982.0,3.7611565]
[1742503447986,2.32077,1982.1,1982.0,3.76104077]
[1742503448482,2.32077,1982.1,1982.0,2.08572077]
[1742503448671,2.32077,1982.1,1982.0,3.09528077]
[1742503449074,2.32077,1982.1,1982.0,2.08572077]
[1742503449283,2.32077,1982.1,1982.0,3.09528077]
[1742503449483,2.32077,1982.1,1982.0,2.08572077]
[1742503452187,1.00961,1981.9,1981.8,3.2078]
[1742503452384,1.00961,1981.9,1981.8,4.89921441]
[1742503453486,2.29841,1981.9,1981.8,6.21021441]
[1742503453894,1.00961,1981.9,1981.8,6.21021441]
[1742503454789,1.00961,1981.9,1981.8,6.21022258]
[1742503455196,2.30021,1981.9,1981.8,6.21022258]
[1742503456084,2.30021,1981.9,1981.8,6.21055419]
[1742503458095,2.30021,1981.9,1981.8,6.21068353]
[1742503459192,3.9073,1982.0,1981.9,1.00961]
[1742503459193,1.0096,1982.0,1981.9,1.00961]
[1742503459395,1.0096,1982.0,1981.9,2.98103353]
[1742503460199,1.00954,1982.1,1982.0,1.00956]
[1742503460392,1.00954,1982.1,1982.0,7.66826205]
[1742503464402,1.00954,1982.1,1982.0,7.66830424]
[1742503466304,1.00954,1982.1,1982.0,7.6683737]
[1742503467597,2.31314,1982.1,1982.0,7.6683737]
[1742503468198,0.6747,1982.2,1982.1,1.00951]
[1742503468400,1.68416,1982.2,1982.1,3.06175237]
[1742503468704,2.98776,1982.2,1982.1,3.06175237]
[1742503469306,2.98776,1982.2,1982.1,2.05224237]
[1742503470219,2.98776,1982.2,1982.1,3.06175237]
[1742503470402,2.98776,1982.2,1982.1,3.06180404]
[1742503472007,2.98776,1982.2,1982.1,2.05229404]
[1742503473603,2.98776,1982.2,1982.1,1.3701]
[1742503474311,2.98776,1982.2,1982.1,2.05241971]
[1742503474608,2.98776,1982.2,1982.1,1.3701]
[1742503474811,2.98776,1982.2,1982.1,2.0525919]
[1742503475213,2.98776,1982.2,1982.1,0.68254256]
[1742503475609,1.00951,1982.1,1982.0,1.3149]
[1742503475808,2.41851,1982.1,1982.0,1.3149]
[1742503476304,2.41851,1982.1,1982.0,1.99735438]
[1742503476608,5.64051,1982.1,1982.0,0.68245438]
[1742503476814,1.00956,1982.0,1981.9,1.3149]
[1742503477015,3.08656,1982.0,1981.9,1.99745148]
[1742503477407,3.08656,1982.0,1981.9,1.99746436]
[1742503478215,3.08656,1982.0,1981.9,1.3149]
[1742503489021,1.00966,1981.8,1981.7,4.22506353]
[1742503489322,1.00966,1981.8,1981.7,4.90620561]
[1742503489521,1.00966,1981.8,1981.7,4.90640473]
[1742503489923,1.00966,1981.8,1981.7,3.89670473]
[1742503490117,1.00966,1981.8,1981.7,4.90641473]
[1742503490318,2.30846,1981.8,1981.7,5.24080473]
[1742503491115,2.30846,1981.8,1981.7,1.35166353]
[1742503494229,2.30846,1981.8,1981.7,0.00756353]
[1742503495532,1.00971,1981.7,1981.6,1.3716]
[1742503495729,9.42331,1981.7,1981.6,1.3716]
[1742503495925,6.21551,1981.7,1981.6,1.3716]
[1742503496527,9.42331,1981.7,1981.6,1.3716]
[1742503500737,1.00976,1981.6,1981.5,0.00756353]
[1742503500932,1.00992,1981.3,1981.2,3.2078]
[1742503501127,1.00992,1981.3,1981.2,3.88990854]
[1742503501632,1.00992,1981.3,1981.2,3.2078]
[1742503502034,1.00992,1981.3,1981.2,4.5069]
[1742503502228,2.30702,1981.3,1981.2,4.5069]
[1742503502426,3.8726,1981.4,1981.3,1.00992]
[1742503502427,4.2319,1981.4,1981.3,1.00992]
[1742503502736,1.0099,1981.4,1981.3,3.03049374]
[1742503502934,2.52433,1981.7,1981.3,4.54513155]
[1742503503132,1.00984,1981.5,1981.4,4.37316155]
[1742503503329,4.23281,1981.6,1981.5,1.00982]
[1742503503635,4.23281,1981.6,1981.5,3.03015155]
[1742503504430,4.23281,1981.6,1981.5,2.02033155]
[1742503504835,5.65071,1981.6,1981.5,2.02018099]
[1742503507236,4.23281,1981.6,1981.5,3.03000099]
[1742503508742,4.23281,1981.6,1981.5,2.02018099]
[1742503508941,5.64821,1981.6,1981.5,2.02018099]
[1742503509245,6.28781,1981.6,1981.5,2.02018099]
[1742503510045,6.94841,1981.6,1981.5,2.02018099]
[1742503510343,6.94841,1981.6,1981.5,1.3385]
[1742503510741,1.00992,1981.3,1981.2,3.8838]
[1742503510936,1.00992,1981.3,1981.2,4.56589187]
[1742503511244,1.00992,1981.3,1981.2,3.2078]
[1742503511442,2.35302,1981.3,1981.2,3.2078]
[1742503512041,3.73962,1981.3,1981.2,4.6084]
[1742503512442,3.73962,1981.3,1981.2,3.2078]
[1742503512845,3.73962,1981.3,1981.2,4.6084]
[1742503514749,3.73962,1981.3,1981.2,1.4006]
[1742503515538,1.00997,1981.2,1981.1,0.00756353]
[1742503515744,8.82797,1981.2,1981.1,0.00756353]
[1742503519547,8.82797,1981.2,1980.7,3.2078]
[1742503519548,1.01017,1980.8,1980.7,3.2078]
[1742503519745,1.01017,1980.8,1980.7,3.88964497]
[1742503520050,1.01017,1980.8,1980.7,3.2078]
[1742503520245,1.01017,1980.8,1980.4,1.01035]
[1742503520246,1.01027,1980.6,1980.5,4.21813]
[1742503520446,1.01027,1980.6,1980.5,4.89998666]
[1742503520641,3.23056353,1980.7,1980.6,1.01027]
[1742503520846,1.01778353,1980.7,1980.6,1.69212666]
[1742503521051,1.01778353,1980.7,1980.6,2.97202666]
[1742503523854,1.01778353,1980.7,1980.6,2.97202666]
[1742503524056,1.01778353,1980.7,1980.6,2.97171994]
[1742503524759,1.01778353,1980.7,1980.6,2.9717613]
[1742503526760,1.01778353,1980.7,1980.6,2.97162176]
[1742503527656,1.01778353,1980.7,1980.6,1.96135176]
[1742503528153,1.01778353,1980.7,1980.6,1.2799]
[1742503528353,2.34988353,1980.7,1980.6,1.2799]
[1742503533863,5.57288353,1980.7,1980.6,1.2799]
[1742503535065,5.57288353,1980.7,1980.5,4.21812]
[1742503535066,1.01027,1980.6,1980.5,4.21812]
[1742503535268,2.30497,1980.6,1980.5,5.2482196]
[1742503535759,2.30497,1980.6,1980.5,5.9071196]
[1742503535956,2.30497,1980.6,1980.5,5.225]
[1742503536362,2.30497,1980.6,1980.5,5.90710909]
[1742503536563,2.30497,1980.6,1980.5,6.91743909]
[1742503536763,2.30497,1980.6,1980.5,6.61140909]
[1742503536963,2.30497,1980.6,1980.5,5.9293]
[1742503537776,2.30497,1980.6,1980.5,6.61162587]
[1742503538475,2.30497,1980.6,1980.5,5.9293]
[1742503538674,2.30497,1980.6,1980.5,6.61192652]
[1742503538967,2.30497,1980.6,1980.5,5.9293]
[1742503539771,2.30497,1980.6,1980.5,6.6123666]
[1742503540763,2.30497,1980.6,1980.5,3.4045666]
[1742503542174,2.30497,1980.6,1980.4,0.00756353]
[1742503542175,1.01033,1980.5,1980.4,0.00756353]
[1742503542370,6.86473,1980.5,1980.4,1.32716353]
[1742503546979,10.07253,1980.5,1980.4,0.00756353]
[1742503548384,12.57253,1980.5,1980.4,3.53e-06]
[1742503548884,10.07253,1980.5,1980.4,3.53e-06]
[1742503552277,6.86473,1980.5,1980.4,3.53e-06]
[1742503552484,10.07253,1980.5,1980.4,3.53e-06]
[1742503553681,1.01048,1980.2,1980.1,1.4124]
[1742503553986,4.23448,1980.2,1980.1,1.4124]
[1742503554389,2.52635,1980.1,1979.8,0.6474]
[1742503554688,1.01063,1979.9,1979.8,0.6474]
[1742503554881,1.01063,1979.9,1979.8,0.65496353]
[1742503555081,3.66873,1979.9,1979.8,0.65496353]
[1742503555285,3.66873,1979.9,1979.8,0.00756353]
[1742503557577,3.66873,1979.9,1979.8,1.28906353]
[1742503560587,2.30223,1979.9,1979.8,1.28906353]
[1742503560786,2.30223,1979.9,1979.8,1.97196353]
[1742503566793,2.95293,1979.9,1979.8,1.97196353]
[1742503569794,2.30223,1979.9,1979.8,1.97196353]
[1742503572997,1.01063,1979.9,1979.8,1.97196353]
[1742503573198,1.01063,1979.9,1979.8,2.65557483]
[1742503574197,1.01063,1979.9,1979.8,3.66624343]
[1742503574495,1.01063,1979.9,1979.8,2.65556343]
[1742503575497,4.91923,1979.9,1979.8,2.65556343]
[1742503575697,4.91923,1979.9,1979.8,2.65601781]
[1742503575994,4.91923,1979.9,1979.8,1.97196353]
[1742503576585,4.23463,1979.9,1979.8,2.65624453]
[1742503576795,4.23463,1979.9,1979.8,2.65623355]
[1742503578599,4.23463,1979.9,1979.8,1.97196353]
[1742503578895,5.63913,1979.9,1979.8,1.97196353]
[1742503579089,5.63913,1979.9,1979.8,2.65656934]
[1742503580401,6.32733,1979.9,1979.8,2.65656934]
[1742503582198,6.32733,1979.9,1979.8,1.97366934]
[1742503582801,6.32733,1979.9,1979.8,1.97474011]
[1742503584202,6.32733,1979.9,1979.8,0.69324011]
[1742503584502,6.32733,1979.9,1979.8,0.00756353]
[1742503584703,1.01073,1979.7,1979.6,1.3288]
[1742503585000,4.23473,1979.7,1979.6,1.3288]
[1742503585400,5.58193,1979.7,1979.6,1.3288]
[1742503590209,4.23473,1979.7,1979.6,2.33959]
[1742503590409,4.23473,1979.7,1979.6,6.20509]
[1742503590707,1.01073,1979.7,1979.6,6.20509]
[1742503594312,1.01073,1979.7,1979.6,2.99729]
[1742503594508,2.35123,1979.7,1979.6,2.99729]
[1742503595917,1.01073,1979.7,1979.6,2.99729]
[1742503598607,3.22151,1979.9,1979.8,1.01063]
[1742503598608,1.01066,1979.9,1979.8,1.01063]
[1742503599015,1.01066,1979.9,1979.8,2.31933]
[1742503602225,1.01066,1979.9,1979.8,1.3087]
[1742503602517,1.67896,1979.9,1979.6,1.66847]
[1742503602719,1.01073,1979.7,1979.6,1.66847]
[1742503604025,2.34883,1979.7,1979.6,3.08487]
[1742503606826,2.34883,1979.7,1979.6,2.0741]
[1742503607126,1.01079,1979.6,1979.5,3.21536353]
[1742503607328,2.98839,1979.6,1979.5,4.61726353]
[1742503607521,2.98839,1979.6,1979.5,1.40946353]
[1742503609427,2.98839,1979.6,1979.5,2.42030353]
[1742503611022,2.98839,1979.6,1979.5,1.40946353]
[1742503611737,2.98839,1979.6,1979.5,2.42030353]
[1742503612232,1.2955,1979.6,1979.5,2.42030353]
[1742503612536,2.5266,1979.9,1979.5,2.42030353]
[1742503612537,3.224,1979.9,1979.7,1.0107]
[1742503612732,1.01063,1980.0,1979.9,1.01063]
[1742503612931,2.32053,1980.0,1979.9,1.01063]
[1742503613128,1.01068,1979.8,1979.7,4.21849]
[1742503613330,2.32057,1979.9,1979.8,1.01068]
[1742503613728,1.01068,1979.8,1979.7,4.2185]
[1742503614036,2.32058,1979.8,1979.7,1.0107]
[1742503615236,2.32058,1979.8,1979.7,4.2185]
[1742503615938,2.32058,1979.8,1979.7,1.0107]
[1742503619130,2.96068,1979.8,1979.7,1.0107]
[1742503619330,1.01076,1979.7,1979.6,1.01075]
[1742503619532,2.39636,1979.7,1979.6,1.01075]
[1742503620239,1.3856,1979.7,1979.6,1.01075]
[1742503620540,1.71557,1979.9,1979.8,1.01068]
[1742503620939,4.23462,1980.0,1979.9,1.01063]
[1742503621440,1.01067,1979.9,1979.8,1.01065]
[1742503621830,2.32827,1979.9,1979.8,1.01065]
[1742503622037,1.3176,1979.9,1979.8,1.01065]
[1742503622242,5.54156,1980.1,1980.0,1.01058]
[1742503623546,1.01058,1980.0,1979.9,4.21841]
[1742503623740,2.32818,1980.0,1979.9,4.21841]
[1742503624542,1.3176,1980.0,1979.9,4.21841]
[1742503626935,4.2345,1980.2,1980.1,1.01053]
[1742503627130,5.5841,1980.2,1980.1,1.01053]
[1742503627942,2.3601,1980.2,1980.1,1.01053]
[1742503630039,2.3601,1980.2,1980.1,1.65203]
[1742503630646,1.01043,1980.4,1980.3,1.01037]
[1742503632140,2.42223,1980.4,1980.3,2.32167]
[1742503632343,2.42223,1980.4,1980.3,2.32173]
[1742503633343,2.42223,1980.4,1980.3,1.3113]
[1742503634544,2.42223,1980.4,1980.3,2.32173]
[1742503635247,2.42223,1980.4,1980.3,1.3113]
[1742503635442,1.01048,1980.2,1980.1,3.2078]
[1742503635642,1.01048,1980.2,1980.1,4.21833]
[1742503636045,2.39628,1980.2,1980.1,4.21833]
[1742503636243,2.39628,1980.2,1980.1,3.2078]
[1742503636954,1.01058,1980.0,1979.9,4.6282]
[1742503637150,1.01058,1980.0,1979.9,5.63883]
[1742503637551,3.63788,1980.0,1979.9,3.2078]
[1742503637754,1.01063,1979.9,1979.8,1.01065]
[1742503638050,2.30253,1979.9,1979.8,1.01065]
[1742503638252,1.01073,1979.8,1979.7,1.01069]
[1742503638453,2.30263,1979.8,1979.7,1.01069]
[1742503643153,1.2919,1979.8,1979.7,1.01069]
[1742503643352,1.01062,1980.0,1979.9,1.01063]
[1742503643554,2.40272,1980.0,1979.9,1.01063]
[1742503644255,1.01063,1979.9,1979.8,4.21844]
[1742503644554,3.07543,1979.9,1979.8,4.21844]
[1742503646658,1.01073,1979.8,1979.7,1.01069]
[1742503646862,3.04143,1979.8,1979.7,1.01069]
[1742503649159,3.04143,1979.8,1979.7,2.41449]
[1742503655463,3.04143,1979.8,1979.7,1.4038]
[1742503655758,1.01073,1979.7,1979.6,3.2078]
[1742503655956,5.58293,1979.7,1979.6,3.2078]
[1742503657363,1.01079,1979.6,1979.5,0.00756353]
[1742503657566,3.02049,1979.6,1979.5,0.00756353]